fUSD/lending_fUSD_20241205
["ID","MTS","AMOUNT","RATE_DAILY","PERIOD"]
[344418520,1733437839142,-942.443281,6.998e-05,2]
[344418521,1733437839163,-286.9,6.998e-05,2]
[344418522,1733437839179,-900.46,6.998e-05,2]
[344418523,1733437839191,-1119.61722992,6.998e-05,2]
[344418524,1733437839203,-4616.72023852,6.998e-05,2]
[344418525,1733437839215,-97400.64506345,6.998e-05,2]
[344418526,1733437839226,-22139.99968549,6.998e-05,2]
[344418527,1733437839238,-13917.32090764,6.998e-05,2]
[344418528,1733437839250,-15032.54125339,6.998e-05,2]
[344418529,1733437839265,-223134.58868195,6.998e-05,2]
[344418530,1733437839277,-76015.20000001,6.998e-05,2]
[344418537,1733437840226,-12899.9998,6.998e-05,2]
[344418571,1733437841016,-282.50834557,6.998e-05,2]
[344418572,1733437841028,-1110.384,6.998e-05,2]
[344418573,1733437841069,-4435.03417969,6.998e-05,2]
[344418574,1733437841081,-2960.76719961,6.998e-05,2]
[344418575,1733437841093,-2369.91995223,6.998e-05,2]
[344418576,1733437841104,-11287.224,6.998e-05,2]
[344418577,1733437841115,-968.43871744,6.998e-05,2]
[344418578,1733437841127,-775.37015954,6.998e-05,2]
[344418579,1733437841140,-14648.5866063,6.998e-05,2]
[344418580,1733437841152,-22500.0,6.998e-05,2]
[344418581,1733437841163,-19799.43105412,6.998e-05,2]
[344418582,1733437841175,-648.85999994,6.998e-05,2]
[344418583,1733437841188,-262.520001,6.998e-05,2]
[344418584,1733437841226,-2264.99998104,6.998e-05,2]
[344418585,1733437841238,-470.0,6.998e-05,2]
[344418586,1733437841250,-13021.05,6.998e-05,2]
[344418587,1733437841266,-89868.8376,6.998e-05,2]
[344418588,1733437841279,-91182.00000001,6.998e-05,2]
[344418589,1733437841301,-86749.69822991,6.998e-05,2]
[344418590,1733437841313,-3937.50000011,6.998e-05,2]
[344418591,1733437841684,-185378.26575093,6.998e-05,2]
[344418592,1733437841696,-110070.00000062,6.998e-05,2]
[344418593,1733437841708,-1200.0015883,6.998e-05,2]
[344418594,1733437841719,-400.4775,6.998e-05,2]
[344418595,1733437841731,-361.45999943,6.998e-05,2]
[344418596,1733437841742,-6764.3286711,6.998e-05,2]
[344418597,1733437841754,-7623.89180004,6.998e-05,2]
[344418598,1733437841768,-14022.00816,6.998e-05,2]
[344418599,1733437841780,-10044.17153943,6.998e-05,2]
[344418600,1733437841791,-9364.2,6.998e-05,2]
[344418601,1733437841819,-18575.0,6.998e-05,2]
[344418602,1733437841831,-4895845.36886325,6.998e-05,2]
[344418603,1733437841847,-980.99001,6.998e-05,2]
[344418604,1733437841859,-883.37089239,6.998e-05,2]
[344418605,1733437841871,-4490.25,6.998e-05,2]
[344418606,1733437841910,-3593.36130287,6.998e-05,2]
[344418607,1733437841921,-488.783295,6.998e-05,2]
[344418608,1733437841932,-9179.16868812,6.998e-05,2]
[344418609,1733437841944,-4473.7,6.998e-05,2]
[344418610,1733437841972,-6952.37139996,6.998e-05,2]
[344418634,1733437842340,-600.0,6e-05,2]
[344418636,1733437842349,-500.0,6.859e-05,2]
[344418638,1733437842364,-634.99148468,6.997e-05,2]
[344418640,1733437842373,-500.00000002,6.997e-05,2]
[344418642,1733437842383,-18066425.432095,6.998e-05,2]
[344418644,1733437842394,-1843.5,6.998e-05,2]
[344418647,1733437842409,-2620.0,6.998e-05,2]
[344418649,1733437842420,-665.0,6.998e-05,2]
[344418720,1733437843024,-270.9891184,5.211e-05,2]
[344418723,1733437843037,-1178.15943687,5.211e-05,2]
[344418725,1733437843047,-161.07558403,6.973e-05,2]
[344418728,1733437843057,-2323.8649791,6.998e-05,2]
[344418740,1733437843117,-19322.59799999,6.998e-05,2]
[344418742,1733437843128,-262.47,6.998e-05,2]
[344418744,1733437843141,-10034.34,6.998e-05,2]
[344418759,1733437843234,-62981.99962,6.998e-05,2]
[344418760,1733437843246,-249855.53999979,6.998e-05,2]
[344418761,1733437843261,-263024.04940754,6.998e-05,2]
[344418762,1733437843273,-3192.35597427,6.998e-05,2]
[344418764,1733437843284,-920.0,6.998e-05,2]
[344418766,1733437843296,-12555.41297867,6.998e-05,2]
[344418768,1733437843313,-2409.45493723,6.998e-05,2]
[344418771,1733437843324,-428.04688815,6.998e-05,2]
[344418773,1733437843336,-2771.92572,6.998e-05,2]
[344418775,1733437843347,-15401.65083699,6.998e-05,2]
[344418777,1733437843362,-6951.30746952,6.998e-05,2]
[344418779,1733437843373,-9781.0,6.998e-05,2]
[344418782,1733437843385,-486640.14411516,6.998e-05,2]
[344418784,1733437843397,-72633.80414998,6.998e-05,2]
[344418809,1733437845653,-1200.0,6.1e-05,2]
[344418810,1733437845664,-7908.9250044,6.998e-05,2]
[344418811,1733437845676,-47760.0,6.998e-05,2]
[344418812,1733437845689,-791036.13431679,6.998e-05,2]
[344418813,1733437845701,-166783.30963568,6.998e-05,2]
[344418814,1733437845712,-2649.46143932,6.998e-05,2]
[344418815,1733437845724,-74079.4553945,6.998e-05,2]
[344418816,1733437845738,-11215.76788838,6.998e-05,2]
[344418817,1733437845765,-733.12932908,6.998e-05,2]
[344418818,1733437845777,-3754.67092,6.998e-05,2]
[344418820,1733437845790,-957.68402124,6.998e-05,2]
[344418821,1733437845805,-11698.87553516,6.998e-05,2]
[344418822,1733437845817,-265.85600005,6.998e-05,2]
[344418823,1733437845830,-45594.4636618,6.998e-05,2]
[344418824,1733437845842,-2655.93276908,6.998e-05,2]
[344418825,1733437845855,-13376.29606084,6.998e-05,2]
[344418827,1733437845868,-9966.4517055,6.998e-05,2]
[344418829,1733437845879,-3039.66124143,6.998e-05,2]
[344418831,1733437845891,-5953.46879073,6.998e-05,2]
[344418833,1733437845903,-10014.50630001,6.998e-05,2]
[344418834,1733437845927,-738.86387488,6.998e-05,2]
[344418835,1733437845939,-1276.47324392,6.998e-05,2]
[344418848,1733437846183,-1900.0,6.2e-05,2]
[344418850,1733437846193,-2130.81654999,6.998e-05,2]
[344418852,1733437846206,-483.3993251,6.998e-05,2]
[344418854,1733437846217,-45000.0001,6.998e-05,2]
[344418857,1733437846229,-1321.371517,6.998e-05,2]
[344418859,1733437846251,-139956.24208724,6.998e-05,2]
[344418860,1733437846265,-18660.0,6.998e-05,2]
[344418861,1733437846278,-36304.4,6.998e-05,2]
[344418862,1733437846292,-749.82536285,6.998e-05,2]
[344418863,1733437846326,-24649.07966767,6.998e-05,2]
[344418864,1733437846339,-329462.499992,6.998e-05,2]
[344418865,1733437846352,-9629.40981402,6.998e-05,2]
[344418866,1733437846373,-1532.17264545,6.998e-05,2]
[344418867,1733437846385,-300.57299987,6.998e-05,2]
[344418868,1733437846397,-306.456,6.998e-05,2]
[344418869,1733437846411,-75494.59054893,6.998e-05,2]
[344418870,1733437846438,-2251.35001,6.998e-05,2]
[344418871,1733437846451,-77617.67626845,6.998e-05,2]
[344418872,1733437846462,-898.20449842,6.999e-05,2]
[344418874,1733437846474,-7697.3259574,6.999e-05,2]
[344418877,1733437846484,-151.11085152,6.999e-05,2]
[344418878,1733437846494,-6856.38347403,6.999e-05,2]
[344418880,1733437846503,-345095.17971721,7e-05,2]
[344418882,1733437846518,-457.65907001,7e-05,2]
[344418884,1733437846530,-30579.78,7e-05,2]
[344418886,1733437846542,-4600.0,7e-05,2]
[344418888,1733437846554,-10579.96364426,7e-05,2]
[344418889,1733437846565,-3799.36604732,7e-05,2]
[344418890,1733437846577,-2221.03701774,7e-05,2]
[344418892,1733437846589,-7304.60692729,7e-05,2]
[344418894,1733437846602,-9157.32,7e-05,2]
[344418895,1733437846613,-827.27247405,7e-05,2]
[344418896,1733437846648,-15550.000005,7e-05,2]
[344418898,1733437846660,-18400.0,7e-05,2]
[344418900,1733437846671,-1262.52,7e-05,2]
[344418903,1733437846683,-317418.4103947,7e-05,2]
[344418905,1733437846694,-15222.12473449,7e-05,2]
[344418907,1733437846705,-22173.88803645,7e-05,2]
[344418908,1733437846717,-3899.99999979,7e-05,2]
[344418910,1733437846728,-3731.4,7e-05,2]
[344418913,1733437846740,-18825.0,7e-05,2]
[344418915,1733437846778,-654.2288281,7e-05,2]
[344418916,1733437846791,-8859.22895971,7e-05,2]
[344418917,1733437846803,-3089.9999995,7e-05,2]
[344418918,1733437846815,-93844.314,7e-05,2]
[344418919,1733437846827,-300.0,7e-05,2]
[344418920,1733437846860,-67405.76209725,7e-05,2]
[344418921,1733437846871,-56113.69420737,7e-05,2]
[344418922,1733437846883,-9680.27262147,7e-05,2]
[344418923,1733437846895,-28730.35,7e-05,2]
[344418924,1733437846951,-1449.14855526,5.219e-05,2]
[344418925,1733437846961,-30944.26616665,7e-05,2]
[344418926,1733437846974,-59156.774,7e-05,2]
[344418928,1733437846987,-793552.50175843,7e-05,2]
[344418929,1733437847016,-444705.68656873,7e-05,2]
[344418930,1733437847055,-2732.73000156,7e-05,2]
[344418931,1733437847067,-312.52171,7e-05,2]
[344418932,1733437847106,-465.77,7e-05,2]
[344418933,1733437847118,-26780.63368969,7e-05,2]
[344418977,1733438119917,10000.0,0.00016,30]
[344418978,1733438145821,40000.0,0.00016,30]
[344418982,1733438369171,10306.20003451,0.00016,30]
[344418983,1733438573206,174.71,4.201e-05,2]
[344418984,1733438663961,-283.23,5.149e-05,2]
[344418985,1733438663984,-366.83,5.171e-05,2]
[344418986,1733438664005,-549.95,5.227e-05,2]
[344418987,1733438801574,-3764.21342694,5.087e-05,2]
[344418988,1733438814429,364.08,4.998e-05,2]
[344418989,1733438826442,200.0,4.973e-05,2]
[344418990,1733438951818,200.0,4.948e-05,2]
[344418991,1733439003119,2000.0,4.979e-05,2]
[344418992,1733439006045,150.0,4.948e-05,2]
[344418993,1733439006096,150.0,4.948e-05,2]
[344418994,1733439006350,150.0,4.948e-05,2]
[344418995,1733439006533,150.0,4.948e-05,2]
[344418996,1733439006985,150.0,4.948e-05,2]
[344418997,1733439007220,150.0,4.948e-05,2]
[344418998,1733439007433,150.0,4.948e-05,2]
[344418999,1733439007615,150.0,4.948e-05,2]
[344419000,1733439007803,150.0,4.948e-05,2]
[344419001,1733439008010,150.0,4.948e-05,2]
[344419002,1733439008220,150.0,4.948e-05,2]
[344419003,1733439008412,150.0,4.948e-05,2]
[344419004,1733439008638,150.0,4.948e-05,2]
[344419005,1733439008828,150.0,4.948e-05,2]
[344419006,1733439009046,150.0,4.948e-05,2]
[344419007,1733439009267,222.02491485,4.948e-05,2]
[344419008,1733439027904,4707.74,4.962e-05,2]
[344419027,1733439035558,-300.0,5.01e-05,2]
[344419028,1733439035568,-6911.7208052,5.011e-05,2]
[344419029,1733439035578,-2367.0791948,5.011e-05,2]
[344419030,1733439035590,-21532.9208052,5.011e-05,2]
[344419031,1733439035600,-2143.86,5.027e-05,2]
[344419032,1733439035610,-1821.73,5.052e-05,2]
[344419033,1733439035622,-170.14,5.075e-05,2]
[344419034,1733439035632,-1008.65,5.087e-05,2]
[344419035,1733439035643,-1547.77,5.087e-05,2]
[344419036,1733439035652,-11870.37,5.142e-05,2]
[344419037,1733439035662,-2223.93,5.143e-05,2]
[344419038,1733439035672,-150.0,5.172e-05,2]
[344419039,1733439035682,-532.4,5.227e-05,2]
[344419040,1733439035692,-174.71,5.251e-05,2]
[344419041,1733439035701,-150.0,5.315e-05,2]
[344419042,1733439035711,-250.0,5.353e-05,2]
[344419043,1733439035721,-500.0,5.353e-05,2]
[344419044,1733439035731,-150.0,5.478e-05,2]
[344419045,1733439035741,-3610.0191948,5.479e-05,2]
[344419046,1733439035759,-3170.0308052,5.479e-05,2]
[344419047,1733439035769,-200.0,5.479e-05,2]
[344419048,1733439035780,-200.0,5.479e-05,2]
[344419049,1733439035790,-420.0,5.511e-05,2]
[344419050,1733439035802,-2184.0,5.631e-05,2]
[344419051,1733439035812,-2179.0,5.631e-05,2]
[344419052,1733439035822,-1179.3427948,5.631e-05,2]
[344419053,1733439035836,-999.6572052,5.631e-05,2]
[344419054,1733439035846,-2179.0,5.631e-05,2]
[344419055,1733439035856,-2179.0,5.631e-05,2]
[344419056,1733439035870,-2179.0,5.631e-05,2]
[344419057,1733439035880,-7895.59641584,5.633e-05,2]
[344419058,1733439035890,-250.0,5.71e-05,2]
[344419059,1733439035900,-180.43,5.739e-05,2]
[344419060,1733439035910,-166.96,5.757e-05,2]
[344419061,1733439035920,-366.83,5.817e-05,2]
[344419062,1733439035930,-349.88,5.905e-05,2]
[344419063,1733439035940,-1300.0,6e-05,2]
[344419064,1733439035950,-255.0,6.026e-05,2]
[344419065,1733439035960,-587.0,6.062e-05,2]
[344419066,1733439035970,-2700.0,6.1e-05,2]
[344419067,1733439035980,-1500.0,6.162e-05,2]
[344419069,1733439035989,-2185.812,6.193e-05,2]
[344419071,1733439036000,-4100.0,6.2e-05,2]
[344419073,1733439036009,-150.0,6.288e-05,2]
[344419075,1733439036019,-5500.0,6.3e-05,2]
[344419077,1733439036029,-174.71,6.301e-05,2]
[344419079,1733439036038,-153.67,6.301e-05,2]
[344419081,1733439036048,-75700.84,6.301e-05,2]
[344419092,1733439036158,-6900.0,6.4e-05,2]
[344419094,1733439036167,-192.96,6.431e-05,2]
[344419096,1733439036177,-366.83,6.464e-05,2]
[344419098,1733439036186,-1300.0,6.5e-05,2]
[344419100,1733439036196,-301.83,6.575e-05,3]
[344419102,1733439036205,-1300.0,6.6e-05,2]
[344419104,1733439036214,-71888.28477898,6.628e-05,2]
[344419107,1733439036234,-1750.14269804,6.628e-05,2]
[344419110,1733439036245,-18887.2,6.628e-05,2]
[344419113,1733439036265,-4594.85721001,6.628e-05,2]
[344419118,1733439036304,-1899.51531297,6.628e-05,2]
[344419120,1733439036313,-433.0,6.629e-05,2]
[344419122,1733439036323,-349.88,6.643e-05,2]
[344419124,1733439036332,-823.0,6.669e-05,2]
[344419126,1733439036341,-1000.0,6.7e-05,2]
[344419128,1733439036350,-993.86271303,6.7e-05,2]
[344419132,1733439036381,-306.13728697,6.7e-05,2]
[344419134,1733439036390,-4487.56271303,6.8e-05,2]
[344419136,1733439036401,-5770.60367265,6.8e-05,2]
[344419138,1733439036413,-678.650005,6.8e-05,2]
[344419140,1733439036425,-1074.5999997,6.8e-05,2]
[344419143,1733439036439,-1864.55870323,6.8e-05,2]
[344419145,1733439036454,-43328.99998691,6.8e-05,2]
[344419147,1733439036466,-71639.30484401,6.8e-05,2]
[344419150,1733439036477,-19202.41563024,6.8e-05,2]
[344419152,1733439036487,-3968.83259089,6.8e-05,2]
[344419154,1733439036496,-1300.0,6.8e-05,2]
[344419156,1733439036505,-592.9537916,6.86e-05,2]
[344419158,1733439036514,-236877.7308,6.9e-05,2]
[344419160,1733439036524,-7277.4732242,6.9e-05,2]
[344419162,1733439036533,-5171.2876,6.9e-05,2]
[344419164,1733439036543,-500.0,6.9e-05,2]
[344419166,1733439036552,-977.56348002,6.9e-05,2]
[344419168,1733439036562,-2204.0,6.9e-05,2]
[344419170,1733439036571,-1709.0,6.959e-05,2]
[344419172,1733439036580,-269.0,6.959e-05,2]
[344419173,1733439036589,-952.0,6.959e-05,2]
[344419176,1733439036599,-155.0,6.959e-05,2]
[344419178,1733439036608,-1726.0,6.959e-05,2]
[344419179,1733439036619,-199.86891814,6.959e-05,2]
[344419182,1733439036630,-478.54,6.959e-05,2]
[344419184,1733439036642,-56695.59108186,6.959e-05,2]
[344419186,1733439036650,-48588.64992514,6.959e-05,2]
[344419188,1733439036662,-14187.35007486,6.959e-05,2]
[344419190,1733439036672,-4383.0,6.959e-05,2]
[344419192,1733439036681,-605.5202,6.965e-05,2]
[344419193,1733439036690,-1000.0,6.965e-05,2]
[344419195,1733439036700,-1000.0,6.965e-05,2]
[344419197,1733439036709,-1000.0,6.965e-05,2]
[344419199,1733439036719,-1000.0,6.965e-05,2]
[344419201,1733439036730,-1000.0,6.965e-05,2]
[344419203,1733439036739,-1000.0,6.965e-05,2]
[344419205,1733439036750,-1000.0,6.965e-05,2]
[344419208,1733439036764,-1000.0,6.965e-05,2]
[344419210,1733439036773,-1000.0,6.965e-05,2]
[344419211,1733439036783,-1000.0,6.965e-05,2]
[344419214,1733439036794,-1000.0,6.965e-05,2]
[344419216,1733439036803,-1000.0,6.965e-05,2]
[344419217,1733439036812,-1000.0,6.965e-05,2]
[344419220,1733439036822,-726.5652,6.965e-05,2]
[344419222,1733439036833,-500.0,6.973e-05,2]
[344419224,1733439036843,-500.74439809,6.973e-05,2]
[344419226,1733439036852,-500.0,6.973e-05,2]
[344419228,1733439036864,-500.0,6.973e-05,2]
[344419230,1733439036873,-500.0,6.973e-05,2]
[344419232,1733439036883,-179.3945168,6.973e-05,2]
[344419234,1733439036892,-160.96001059,6.973e-05,2]
[344419236,1733439036902,-159.43625397,6.973e-05,2]
[344419238,1733439036911,-159.45175759,6.973e-05,2]
[344419240,1733439036920,-600.23564375,6.973e-05,2]
[344419242,1733439036929,-159.4497293,6.973e-05,2]
[344419244,1733439036938,-260.91828011,6.973e-05,2]
[344419246,1733439036947,-500.0,6.973e-05,2]
[344419248,1733439036956,-500.0,6.973e-05,2]
[344419250,1733439036965,-150.0,6.986e-05,2]
[344419252,1733439036974,-33548.14027308,6.99e-05,2]
[344419263,1733439037083,-226625.52089414,6.99e-05,2]
[344419265,1733439037092,-7505.2960626,6.99e-05,2]
[344419267,1733439037102,-6031.1302257,6.99e-05,2]
[344419269,1733439037112,-7916.1313564,6.99e-05,2]
[344419271,1733439037121,-426.74678592,6.99e-05,2]
[344419273,1733439037130,-37609.6192851,6.99e-05,2]
[344419274,1733439037139,-2340.0,6.995e-05,2]
[344419276,1733439037149,-6212.812276,6.995e-05,2]
[344419279,1733439037159,-4920.3284893,6.995e-05,2]
[344419280,1733439037168,-3627.8447027,6.995e-05,2]
[344419282,1733439037177,-2335.360916,6.995e-05,2]
[344419284,1733439037186,-4992.5118998,6.995e-05,2]
[344419286,1733439037196,-3953.8935739,6.995e-05,2]
[344419288,1733439037205,-2915.275248,6.995e-05,2]
[344419290,1733439037215,-1876.6569221,6.995e-05,2]
[344419292,1733439037225,-6554.9539236,6.995e-05,2]
[344419294,1733439037234,-5193.7764908,6.995e-05,2]
[344419296,1733439037243,-3832.5990581,6.995e-05,2]
[344419298,1733439037252,-2471.4216253,6.995e-05,2]
[344419300,1733439037262,-31132.8830255,6.995e-05,2]
[344419302,1733439037271,-24656.146766,6.995e-05,2]
[344419304,1733439037281,-18179.4105064,6.995e-05,2]
[344419306,1733439037290,-11702.6742468,6.995e-05,2]
[344419308,1733439037299,-360.0,6.998e-05,2]
[344419310,1733439037308,-360.0,6.998e-05,2]
[344419312,1733439037318,-360.0,6.998e-05,2]
[344419314,1733439037327,-360.0,6.998e-05,2]
[344419316,1733439037336,-360.0,6.998e-05,2]
[344419318,1733439037345,-360.0,6.998e-05,3]
[344419320,1733439037355,-360.0,6.998e-05,3]
[344419322,1733439037366,-360.0,6.998e-05,3]
[344419324,1733439037376,-360.0,6.998e-05,3]
[344419326,1733439037385,-360.0,6.998e-05,3]
[344419328,1733439037394,-150.01,6.999e-05,2]
[344419330,1733439037403,-500.0,6.999e-05,2]
[344419332,1733439037412,-157.88081035,6.999e-05,2]
[344419334,1733439037422,-362.9733483,6.999e-05,2]
[344419336,1733439037431,-500.0,6.999e-05,2]
[344419338,1733439037441,-379.85489514,6.999e-05,2]
[344419340,1733439037449,-197.7271685,6.999e-05,2]
[344419341,1733439037459,-6273.93745081,6.999e-05,2]
[344419344,1733439037469,-194.20435917,6.999e-05,2]
[344419345,1733439037478,-1106.33681617,6.999e-05,2]
[344419347,1733439037488,-1106.33681617,6.999e-05,2]
[344419349,1733439037498,-1106.33681617,6.999e-05,2]
[344419351,1733439037507,-500.0,6.999e-05,2]
[344419353,1733439037516,-309322.30315145,7e-05,2]
[344419406,1733439038089,-7187.34656336,7e-05,2]
[344419408,1733439038101,-124174.4055419,7e-05,2]
[344419410,1733439038114,-515299.98568742,7e-05,2]
[344419453,1733439038499,-36262.65857307,7e-05,2]
[344419455,1733439038510,-162321.48623594,7e-05,2]
[344419458,1733439038527,-379000.00000003,7e-05,2]
[344419460,1733439038538,-548.80980888,7e-05,2]
[344419463,1733439038556,-344204.13091683,7e-05,2]
[344419465,1733439038568,-41226.32128372,7e-05,2]
[344419467,1733439038580,-2839.99522477,7e-05,2]
[344419469,1733439038591,-6998.68289346,7e-05,2]
[344419472,1733439038603,-1887220.16800556,7e-05,2]
[344419475,1733439038627,-1699.16956259,7e-05,2]
[344419477,1733439038638,-3216.95227135,7e-05,2]
[344419479,1733439038650,-312.27156458,7e-05,2]
[344419482,1733439038662,-757.25070126,7e-05,2]
[344419485,1733439038684,-519.07829482,7e-05,2]
[344419488,1733439038699,-34165324.8565235,7e-05,2]
[344419490,1733439038709,-2156.53356966,7e-05,2]
[344419492,1733439038718,-76900394.78122984,7e-05,2]
[344419494,1733439038729,-565.0,7e-05,2]
[344419496,1733439038741,-49166.12642517,7e-05,2]
[344419500,1733439038776,-191105.07090396,7e-05,2]
[344419571,1733439040216,-12654.97654465,7e-05,2]
[344419572,1733439040239,-3475.79030406,7e-05,2]
[344419573,1733439040251,-4927.23480549,7e-05,2]
[344419574,1733439040262,-10000.0,7e-05,2]
[344419575,1733439040273,-1186.480476,7e-05,2]
[344419576,1733439040284,-7057.76127912,7e-05,2]
[344419577,1733439040296,-394.662,7e-05,2]
[344419578,1733439040307,-1060.86837636,7e-05,2]
[344419584,1733439040575,-1165.5,7e-05,2]
[344419586,1733439040587,-477.66,7e-05,2]
[344419587,1733439040599,-1149.78206775,7e-05,2]
[344419588,1733439040610,-4843.85632655,7e-05,2]
[344419589,1733439040623,-284.14159459,7e-05,2]
[344419590,1733439040634,-381.73,7e-05,2]
[344419591,1733439040646,-47684.09053274,7e-05,2]
[344419592,1733439040658,-10035.69139,7e-05,2]
[344419593,1733439040669,-4577.63209527,7e-05,2]
[344419594,1733439040681,-6106.68143726,7e-05,2]
[344419595,1733439040750,-607.46602351,7e-05,2]
[344419596,1733439040765,-949.25020891,7e-05,2]
[344419597,1733439040777,-6008.27492,7e-05,2]
[344419598,1733439040789,-973.56281918,7e-05,2]
[344419615,1733439043246,-9585.969216,7e-05,2]
[344419618,1733439043257,-965.78,7e-05,2]
[344419619,1733439043269,-191749.72517167,7e-05,2]
[344419621,1733439043280,-1845.66805756,7e-05,2]
[344419622,1733439043588,-9025.94148968,7e-05,2]
[344419623,1733439043599,-22606.71371014,7e-05,2]
[344419624,1733439043611,-3690.09180191,7e-05,2]
[344419625,1733439043625,-2852.48249908,7e-05,2]
[344419626,1733439043637,-5598.16627723,7e-05,2]
[344419627,1733439043648,-6895.46756336,7e-05,2]
[344419628,1733439043663,-1073.39307271,7e-05,2]
[344419629,1733439043674,-4668.4,7e-05,2]
[344419630,1733439043686,-18171.29795,7e-05,2]
[344419631,1733439043697,-2037.05378518,7e-05,2]
[344419632,1733439043708,-8008.42999274,7e-05,2]
[344419633,1733439043720,-9413.71009469,7e-05,2]
[344419634,1733439043732,-30575.34827225,7e-05,2]
[344419635,1733439043743,-10204.12983889,7e-05,2]
[344419636,1733439043758,-995.67615199,7e-05,2]
[344419637,1733439043769,-298.25383191,7e-05,2]
[344419638,1733439043781,-13458.98068584,7e-05,2]
[344419639,1733439043794,-964056.1334669,7e-05,2]
[344419640,1733439043805,-4836.0,7e-05,2]
[344419641,1733439043816,-2815.41717718,7e-05,2]
[344419642,1733439043838,-1346.64905792,7e-05,2]
[344419643,1733439043850,-2508.14503036,7e-05,2]
[344419644,1733439043872,-7935.74607421,7e-05,2]
[344419645,1733439043883,-18888.8,7e-05,2]
[344419651,1733439044082,-266.71034312,7e-05,2]
[344419652,1733439044094,-902.68437569,7e-05,2]
[344419653,1733439044106,-951.77514956,7e-05,2]
[344419659,1733439046067,-152.21170303,6.999e-05,2]
[344419661,1733439046078,-14517.06812358,7e-05,2]
[344419665,1733439046107,-655.0570145,7e-05,2]
[344419666,1733439046120,-51194.46924976,7e-05,2]
[344419667,1733439046133,-95621.46888787,7e-05,2]
[344419668,1733439046152,-189880.07409101,7e-05,2]
[344419669,1733439046165,-141873.10463549,7e-05,2]
[344419670,1733439046202,-7602.59999999,7e-05,2]
[344419671,1733439046311,-4841.79727168,7e-05,2]
[344419672,1733439046323,-948.46,7e-05,2]
[344419673,1733439046362,-122810.54030237,7e-05,2]
[344419674,1733439046402,-628734.72052238,7e-05,2]
[344419675,1733439046425,-621.71554578,7e-05,2]
[344419676,1733439046440,-10823.58999288,7e-05,2]
[344419677,1733439046499,-112817.8049944,7e-05,2]
[344419678,1733439046511,-130325.2768434,7e-05,2]
[344419679,1733439046523,-922728.76835231,7e-05,2]
[344419699,1733439068168,-918.31,0.00016658,30]
[344419700,1733439068210,-10000.76539999,0.00018,30]
[344419701,1733439068236,-158162.61460001,0.00018,30]
[344419702,1733439163351,339.56473997,7e-06,2]
[344419712,1733439603102,150.0,7e-06,2]
[344419713,1733439603345,150.0,7e-06,2]
[344419714,1733439603553,150.0,7e-06,2]
[344419715,1733439724298,169.92,4.205e-05,2]
[344419716,1733439749604,1564.05,5e-05,2]
[344419717,1733439762261,1597.67,4.981e-05,2]
[344419909,1733439827450,284.2340686,4.956e-05,2]
[344419910,1733439840899,324.93,4.974e-05,2]
[344419915,1733439882665,209.92,4.999e-05,2]
[344419917,1733439952786,269.01,4.977e-05,2]
[344419918,1733439961665,500.0,4.977e-05,2]
[344419920,1733439969766,300.0,4.954e-05,2]
[344419924,1733439999692,8076.12,4.916e-05,2]
[344419925,1733440021095,489.24,4.916e-05,2]
[344419926,1733440026628,532.56,4.916e-05,2]
[344419928,1733440086866,169.09,4.987e-05,2]
[344419933,1733440148436,1758.16,4.975e-05,2]
[344419934,1733440202824,150.0,4.975e-05,2]
[344419935,1733440203049,249.12262312,4.975e-05,2]
[344419968,1733440232930,-356.90811955,5.009e-05,2]
[344419969,1733440232943,-2307.41188045,5.009e-05,2]
[344419970,1733440232952,-552.68551808,5.021e-05,2]
[344419971,1733440232964,-1252.95529901,5.021e-05,2]
[344419972,1733440232977,-1232.00918291,5.021e-05,2]
[344419973,1733440232987,-3344.08,5.036e-05,2]
[344419974,1733440232997,-237.2401297,5.075e-05,2]
[344419975,1733440233007,-617.62083179,5.075e-05,2]
[344419976,1733440233018,-3259.03000285,5.076e-05,2]
[344419977,1733440233031,-398.50999715,5.076e-05,2]
[344419978,1733440233041,-11122.66431703,5.167e-05,2]
[344419979,1733440233054,-6302.81568297,5.167e-05,2]
[344419980,1733440233066,-250.0,5.186e-05,2]
[344419981,1733440233077,-2536.49,5.207e-05,2]
[344419982,1733440233089,-150.0,5.208e-05,2]
[344419983,1733440233101,-150.0,5.217e-05,2]
[344419984,1733440233115,-1388.0,5.218e-05,2]
[344419985,1733440233126,-1385.0,5.218e-05,2]
[344419986,1733440233137,-1385.0,5.218e-05,2]
[344419987,1733440233148,-1385.0,5.218e-05,2]
[344419988,1733440233160,-2000.0,5.24e-05,2]
[344419989,1733440233171,-169.92,5.256e-05,2]